fUST/lending_fUST_20250312
["ID","MTS","AMOUNT","RATE_DAILY","PERIOD"]
[356006651,1741793449412,-500.0,0.00022191,2]
[356006652,1741793449421,-500.0,0.00022191,2]
[356006653,1741793449519,-661.64,0.00022191,2]
[356006654,1741793449529,-500.0,0.00022191,2]
[356006655,1741793449538,-579.89127843,0.00022191,2]
[356006656,1741793449548,-500.0,0.00022191,2]
[356006657,1741793449557,-500.0,0.00022191,2]
[356006658,1741793449567,-500.0,0.00022191,2]
[356006659,1741793449577,-500.0,0.00022191,2]
[356006660,1741793449586,-500.0,0.00022191,2]
[356006661,1741793449596,-500.0,0.00022191,2]
[356006662,1741793449605,-500.0,0.00022191,2]
[356006663,1741793449615,-500.0,0.00022191,2]
[356006664,1741793449625,-500.0,0.00022191,2]
[356006665,1741793449635,-500.0,0.00022191,2]
[356006666,1741793449644,-526.89475694,0.00022191,2]
[356006667,1741793449654,-523.98355532,0.00022191,2]
[356006668,1741793449663,-500.0,0.00022191,2]
[356006669,1741793449674,-500.0,0.00022191,2]
[356006670,1741793449683,-500.0,0.00022191,2]
[356006671,1741793449693,-609.8,0.00022191,2]
[356006672,1741793449703,-1131.2,0.00022191,2]
[356006673,1741793449714,-500.0,0.00022191,2]
[356006674,1741793449724,-946.57,0.00022191,2]
[356006675,1741793449735,-500.0,0.00022191,2]
[356006676,1741793449746,-500.0,0.00022191,2]
[356006677,1741793449757,-500.0,0.00022191,2]
[356006678,1741793449767,-500.0,0.00022191,2]
[356006679,1741793449777,-826.09,0.00022191,2]
[356006680,1741793449787,-500.0,0.00022191,2]
[356006681,1741793449796,-500.0,0.00022191,2]
[356006682,1741793449805,-500.0,0.00022191,2]
[356006683,1741793449815,-500.0,0.00022191,2]
[356006684,1741793449824,-500.0,0.00022191,2]
[356006685,1741793449833,-500.0,0.00022191,2]
[356006686,1741793449843,-500.0,0.00022191,2]
[356006687,1741793449852,-500.0,0.00022191,2]
[356006688,1741793449862,-500.0,0.00022191,2]
[356006689,1741793449872,-500.0,0.00022191,2]
[356006690,1741793449881,-500.0,0.00022191,2]
[356006691,1741793449891,-500.0,0.00022191,2]
[356006692,1741793449901,-500.0,0.00022191,2]
[356006693,1741793449911,-500.0,0.00022191,2]
[356006694,1741793449920,-500.0,0.00022191,2]
[356006695,1741793449930,-500.0,0.00022191,2]
[356006696,1741793449939,-500.0,0.00022191,2]
[356006697,1741793449948,-500.0,0.00022191,2]
[356006698,1741793449958,-1062.19,0.00022191,2]
[356006699,1741793449968,-500.0,0.00022191,2]
[356006700,1741793449978,-500.0,0.00022191,2]
[356006701,1741793449989,-500.0,0.00022191,2]
[356006702,1741793449999,-500.0,0.00022191,2]
[356006703,1741793450008,-500.0,0.00022191,2]
[356006704,1741793450018,-500.0,0.00022191,2]
[356006705,1741793450027,-500.0,0.00022191,2]
[356006706,1741793450037,-597.21,0.00022191,2]
[356006707,1741793450047,-500.0,0.00022191,2]
[356006708,1741793450057,-500.0,0.00022191,2]
[356006709,1741793450066,-874.59,0.00022191,2]
[356006710,1741793450076,-639.77,0.00022191,2]
[356006711,1741793450086,-605.08,0.00022191,5]
[356006712,1741793450095,-500.0,0.00022191,2]
[356006713,1741793450106,-500.0,0.00022191,2]
[356006714,1741793450120,-500.0,0.00022191,2]
[356006715,1741793450130,-1294.83,0.00022191,2]
[356006716,1741793450140,-1330.17,0.00022191,2]
[356006717,1741793450159,-500.0,0.00022191,2]
[356006718,1741793450177,-500.0,0.00022191,2]
[356006719,1741793450195,-500.0,0.00022191,2]
[356006720,1741793450215,-500.0,0.00022191,2]
[356006721,1741793450235,-590.75785673,0.00022191,2]
[356006722,1741793450252,-500.0,0.00022191,2]
[356006723,1741793450270,-500.0,0.00022191,2]
[356006724,1741793450284,-1279.74,0.00022191,2]
[356006725,1741793450299,-500.0,0.00022191,2]
[356006726,1741793450316,-500.0,0.00022191,2]
[356006727,1741793450336,-500.0,0.00022191,2]
[356006728,1741793450353,-504.99093472,0.00022191,2]
[356006729,1741793450366,-500.0,0.00022191,2]
[356006730,1741793450385,-500.0,0.00022191,2]
[356006731,1741793450400,-500.0,0.00022191,2]
[356006732,1741793450418,-500.0,0.00022191,2]
[356006733,1741793450432,-588.45553264,0.00022191,2]
[356006734,1741793450448,-500.0,0.00022191,2]
[356006735,1741793450464,-1722.61,0.00022191,2]
[356006736,1741793450479,-500.0,0.00022191,2]
[356006737,1741793450494,-507.63,0.00022191,2]
[356006738,1741793450509,-500.0,0.00022191,2]
[356006739,1741793450524,-527.04,0.00022191,2]
[356006740,1741793450540,-500.0,0.00022191,2]
[356006741,1741793450554,-304.89800599,0.00022191,2]
[356006742,1741793450570,-500.0,0.00022191,2]
[356006743,1741793450585,-500.0,0.00022191,2]
[356006744,1741793450600,-500.0,0.00022191,2]
[356006745,1741793450615,-500.0,0.00022191,2]
[356006746,1741793450630,-502.9971439,0.00022191,2]
[356006747,1741793450648,-239.42349852,0.00022191,2]
[356006748,1741793450662,-500.0,0.00022191,2]
[356006749,1741793450678,-500.0,0.00022191,2]
[356006750,1741793450693,-500.0,0.00022191,2]
[356006751,1741793450708,-1063.33,0.00022191,2]
[356006752,1741793450724,-500.0,0.00022191,2]
[356006753,1741793450742,-500.0,0.00022191,2]
[356006754,1741793450758,-500.0,0.00022191,2]
[356006755,1741793450773,-500.0,0.00022191,2]
[356006756,1741793450790,-500.0,0.00022191,2]
[356006757,1741793450805,-500.0,0.00022191,2]
[356006758,1741793450821,-500.0,0.00022191,2]
[356006759,1741793450837,-500.0,0.00022191,2]
[356006760,1741793450852,-500.0,0.00022191,2]
[356006761,1741793450867,-500.0,0.00022191,2]
[356006762,1741793450883,-441.82256377,0.00022191,2]
[356006763,1741793450897,-500.0,0.00022191,2]
[356006764,1741793450913,-698.39,0.00022191,2]
[356006765,1741793450929,-500.0,0.00022191,2]
[356006766,1741793450945,-500.0,0.00022191,2]
[356006767,1741793450960,-500.0,0.00022191,2]
[356006768,1741793450975,-500.0,0.00022191,2]
[356006769,1741793450991,-500.0,0.00022191,2]
[356006770,1741793451006,-500.0,0.00022191,2]
[356006771,1741793451021,-522.59887614,0.00022191,2]
[356006772,1741793451036,-500.0,0.00022191,2]
[356006773,1741793451051,-500.0,0.00022191,2]
[356006774,1741793451066,-500.0,0.00022191,2]
[356006775,1741793451081,-1346.12,0.00022191,2]
[356006776,1741793451097,-500.0,0.00022191,2]
[356006777,1741793451115,-500.0,0.00022191,2]
[356006778,1741793451130,-500.0,0.00022191,2]
[356006779,1741793451144,-500.0,0.00022191,2]
[356006780,1741793451293,-500.0,0.00022191,2]
[356006781,1741793451316,-500.0,0.00022191,2]
[356006782,1741793451326,-500.0,0.00022191,2]
[356006783,1741793451335,-500.0,0.00022191,2]
[356006784,1741793451345,-500.0,0.00022191,2]
[356006785,1741793451355,-500.0,0.00022191,2]
[356006786,1741793451364,-598.40208354,0.00022191,2]
[356006787,1741793451374,-500.0,0.00022191,2]
[356006788,1741793451384,-500.0,0.00022191,2]
[356006789,1741793451394,-500.0,0.00022191,2]
[356006790,1741793451403,-500.0,0.00022191,2]
[356006791,1741793451413,-500.0,0.00022191,2]
[356006792,1741793451422,-500.0,0.00022191,2]
[356006793,1741793451431,-1073.29,0.00022191,2]
[356006794,1741793451440,-500.0,0.00022191,2]
[356006795,1741793451450,-509.72040281,0.00022191,2]
[356006796,1741793451459,-500.0,0.00022191,2]
[356006797,1741793451469,-562.87763322,0.00022191,2]
[356006798,1741793451479,-500.0,0.00022191,2]
[356006799,1741793451491,-500.0,0.00022191,2]
[356006800,1741793451500,-500.0,0.00022191,2]
[356006801,1741793451510,-1976.23,0.00022191,2]
[356006802,1741793451519,-500.0,0.00022191,2]
[356006803,1741793451528,-585.62,0.00022191,2]
[356006804,1741793451538,-683.59,0.00022191,2]
[356006805,1741793451548,-500.0,0.00022191,2]
[356006806,1741793451558,-1143.79,0.00022191,2]
[356006807,1741793451567,-595.63280161,0.00022191,2]
[356006808,1741793451578,-500.0,0.00022191,2]
[356006809,1741793451587,-550.04,0.00022191,2]
[356006810,1741793451597,-500.0,0.00022191,2]
[356006811,1741793451607,-574.47,0.00022191,2]
[356006812,1741793451616,-500.0,0.00022191,2]
[356006813,1741793451626,-500.0,0.00022191,2]
[356006814,1741793451636,-500.0,0.00022191,2]
[356006815,1741793451646,-500.0,0.00022191,2]
[356006816,1741793451656,-500.0,0.00022191,2]
[356006817,1741793451665,-630.03,0.00022191,2]
[356006818,1741793451675,-500.0,0.00022191,2]
[356006819,1741793451684,-500.0,0.00022191,2]
[356006820,1741793451693,-500.0,0.00022191,2]
[356006821,1741793451703,-500.0,0.00022191,2]
[356006822,1741793451713,-532.81226363,0.00022191,2]
[356006823,1741793451723,-1237.12,0.00022191,2]
[356006824,1741793451732,-501.47419825,0.00022191,2]
[356006825,1741793451745,-501.66483492,0.00022191,2]
[356006826,1741793451755,-500.0,0.00022191,2]
[356006827,1741793451766,-500.0,0.00022191,2]
[356006828,1741793451776,-500.0,0.00022191,2]
[356006829,1741793451786,-500.0,0.00022191,2]
[356006830,1741793451795,-500.0,0.00022191,2]
[356006831,1741793451806,-500.0,0.00022191,2]
[356006832,1741793451816,-500.0,0.00022191,2]
[356006833,1741793451826,-500.0,0.00022191,2]
[356006834,1741793451836,-500.0,0.00022191,2]
[356006835,1741793451846,-500.0,0.00022191,2]
[356006836,1741793451855,-500.0,0.00022191,2]
[356006837,1741793451865,-500.0,0.00022191,2]
[356006838,1741793451874,-567.64,0.00022191,2]
[356006839,1741793451883,-500.0,0.00022191,2]
[356006840,1741793451893,-500.0,0.00022191,2]
[356006841,1741793451904,-500.0,0.00022191,2]
[356006842,1741793451913,-500.0,0.00022191,2]
[356006843,1741793451923,-500.0,0.00022191,2]
[356006844,1741793451932,-500.0,0.00022191,2]
[356006845,1741793451942,-500.0,0.00022191,2]
[356006846,1741793451952,-500.0,0.00022191,2]
[356006847,1741793451962,-2141.55,0.00022191,2]
[356006848,1741793451972,-500.0,0.00022191,2]
[356006849,1741793451982,-1204.72,0.00022191,2]
[356006850,1741793451993,-500.0,0.00022191,2]
[356006851,1741793452003,-594.82,0.00022191,2]
[356006852,1741793452013,-500.0,0.00022191,2]
[356006853,1741793452024,-500.0,0.00022191,2]
[356006854,1741793452033,-1495.98,0.00022191,2]
[356006855,1741793452043,-500.0,0.00022191,2]
[356006856,1741793452052,-500.0,0.00022191,2]
[356006857,1741793452062,-2086.04,0.00022191,2]
[356006858,1741793452072,-500.0,0.00022191,2]
[356006859,1741793452082,-500.0,0.00022191,2]
[356006860,1741793452093,-500.0,0.00022191,2]
[356006861,1741793452102,-500.0,0.00022191,2]
[356006862,1741793452114,-500.0,0.00022191,2]
[356006863,1741793452124,-500.0,0.00022191,2]
[356006864,1741793452133,-2327.1,0.00022191,2]
[356006865,1741793452143,-500.0,0.00022191,2]
[356006866,1741793452154,-500.0,0.00022191,2]
[356006867,1741793452164,-637.3,0.00022191,2]
[356006868,1741793452173,-500.0,0.00022191,2]
[356006869,1741793452183,-500.0,0.00022191,2]
[356006870,1741793452194,-500.0,0.00022191,2]
[356006871,1741793452204,-547.46,0.00022191,2]
[356006872,1741793452213,-500.0,0.00022191,2]
[356006873,1741793452223,-500.0,0.00022191,2]
[356006874,1741793452233,-587.94188016,0.00022191,2]
[356006875,1741793452247,-500.0,0.00022191,2]
[356006876,1741793452256,-500.0,0.00022191,2]
[356006877,1741793452266,-1767.72,0.00022191,2]
[356006878,1741793452275,-1885.65,0.00022191,2]
[356006879,1741793452285,-9180.3,0.00022191,2]
[356006880,1741793452294,-500.0,0.00022191,2]
[356006881,1741793452304,-500.0,0.00022191,2]
[356006882,1741793452313,-817.19,0.00022191,2]
[356006883,1741793452323,-196.38011556,0.00022191,2]
[356006884,1741793452333,-500.0,0.00022191,2]
[356006885,1741793452342,-1976.89,0.00022191,2]
[356006886,1741793452352,-1210.4,0.00022191,2]
[356006887,1741793452361,-1183.55,0.00022191,2]
[356006888,1741793452371,-500.0,0.00022191,2]
[356006889,1741793452380,-729.28,0.00022191,2]
[356006890,1741793452390,-1010.81,0.00022191,2]
[356006891,1741793452399,-500.0,0.00022191,2]
[356006892,1741793452408,-500.0,0.00022191,2]
[356006893,1741793452418,-500.0,0.00022191,2]
[356006894,1741793452427,-769.44,0.00022191,2]
[356006895,1741793452437,-500.0,0.00022191,2]
[356006896,1741793452446,-500.0,0.00022191,2]
[356006897,1741793452455,-819.43,0.00022191,2]
[356006898,1741793452464,-2500.81,0.00022191,2]
[356006899,1741793452473,-500.0,0.00022191,2]
[356006900,1741793452485,-500.0,0.00022191,2]
[356006901,1741793452494,-932.95,0.00022191,2]
[356006902,1741793452503,-500.0,0.00022191,2]
[356006903,1741793452512,-500.0,0.00022191,2]
[356006904,1741793452522,-1317.48,0.00022191,2]
[356006905,1741793452531,-1150.77,0.00022191,2]
[356006906,1741793452542,-1475.87,0.00022191,2]
[356006907,1741793452551,-1935.28,0.00022191,2]
[356006908,1741793452561,-500.0,0.00022191,2]
[356006909,1741793452570,-500.0,0.00022191,2]
[356006910,1741793452580,-500.0,0.00022191,2]
[356006911,1741793452589,-500.0,0.00022191,2]
[356006912,1741793452599,-1259.36,0.00022191,2]
[356006913,1741793452608,-500.0,0.00022191,2]
[356006914,1741793452617,-1688.25,0.00022191,2]
[356006915,1741793452627,-2024.05,0.00022191,2]
[356006916,1741793452636,-500.0,0.00022191,2]
[356006917,1741793452645,-1019.14,0.00022191,2]
[356006918,1741793452655,-1435.97,0.00022191,2]
[356006919,1741793452664,-998.45,0.00022191,2]
[356006920,1741793452674,-1379.04,0.00022191,2]
[356006921,1741793452683,-500.0,0.00022191,2]
[356006922,1741793452698,-500.0,0.00022191,2]
[356006923,1741793452707,-500.0,0.00022191,2]
[356006924,1741793452717,-1828.2,0.00022191,2]
[356006925,1741793452726,-500.0,0.00022191,2]
[356006926,1741793452738,-500.0,0.00022191,2]
[356006927,1741793452747,-500.0,0.00022191,2]
[356006928,1741793452756,-29117.98,0.00022191,2]
[356006929,1741793452765,-518.96,0.00022191,2]
[356006930,1741793452774,-500.0,0.00022191,2]
[356006931,1741793452783,-732.87,0.00022191,2]
[356006932,1741793452792,-500.0,0.00022191,2]
[356006933,1741793452801,-500.0,0.00022191,2]
[356006934,1741793452811,-699.35,0.00022191,2]
[356006935,1741793452820,-500.0,0.00022191,2]
[356006936,1741793452829,-5323.54,0.00022191,2]
[356006937,1741793452839,-1802.23,0.00022191,2]
[356006938,1741793452848,-500.0,0.00022191,2]
[356006939,1741793452857,-532.1829557,0.00022191,2]
[356006940,1741793452867,-2894.87,0.00022191,2]
[356006941,1741793452876,-500.0,0.00022191,2]
[356006942,1741793452885,-500.0,0.00022191,2]
[356006943,1741793452895,-499.9972816,0.00022191,2]
[356006944,1741793452905,-500.0,0.00022191,2]
[356006945,1741793452914,-1272.02,0.00022191,2]
[356006946,1741793452924,-500.0,0.00022191,2]
[356006947,1741793452934,-536.83,0.00022191,2]
[356006948,1741793452942,-643.6,0.00022191,2]
[356006949,1741793452952,-500.0,0.00022191,2]
[356006950,1741793452960,-500.0,0.00022191,2]
[356006951,1741793452970,-1390.03,0.00022191,2]
[356006952,1741793452979,-1697.13,0.00022191,2]
[356006953,1741793452990,-500.0,0.00022191,2]
[356006954,1741793453000,-500.0,0.00022191,2]
[356006955,1741793453009,-500.0,0.00022191,2]
[356006956,1741793453018,-500.0,0.00022191,2]
[356006957,1741793453028,-1665.05,0.00022191,2]
[356006958,1741793453141,-500.0,0.00022191,2]
[356006959,1741793453151,-4035.55,0.00022191,2]
[356006960,1741793453160,-500.0,0.00022191,2]
[356006961,1741793453170,-500.0,0.00022191,2]
[356006962,1741793453179,-17606.95,0.00022191,2]
[356006963,1741793453188,-3269.46,0.00022191,2]
[356006964,1741793453198,-500.0,0.00022191,2]
[356006965,1741793453207,-500.0,0.00022191,2]
[356006966,1741793453216,-1059.74,0.00022191,2]
[356006967,1741793453226,-500.0,0.00022191,2]
[356006968,1741793453236,-1465.71,0.00022191,2]
[356006969,1741793453245,-500.0,0.00022191,2]
[356006970,1741793453254,-552.41,0.00022191,2]
[356006971,1741793453264,-500.0,0.00022191,2]
[356006972,1741793453273,-734.16,0.00022191,2]
[356006973,1741793453283,-500.0,0.00022191,2]
[356006974,1741793453293,-859.32,0.00022191,2]
[356006975,1741793453302,-2406.73,0.00022191,2]
[356006976,1741793453312,-1037.65,0.00022191,2]
[356006977,1741793453321,-553.87,0.00022191,2]
[356006978,1741793453331,-862.64,0.00022191,2]
[356006979,1741793453340,-500.0,0.00022191,2]
[356006980,1741793453350,-500.0,0.00022191,2]
[356006981,1741793453359,-500.0,0.00022191,2]
[356006982,1741793453369,-500.0,0.00022191,2]
[356006983,1741793453379,-1961.85,0.00022191,2]
[356006984,1741793453388,-500.0,0.00022191,2]
[356006985,1741793453398,-500.0,0.00022191,2]
[356006986,1741793453408,-3237.69,0.00022191,2]
[356006987,1741793453417,-1082.88,0.00022191,2]
[356006988,1741793453427,-1883.11,0.00022191,2]
[356006989,1741793453436,-500.0,0.00022191,2]
[356006990,1741793453445,-500.0,0.00022191,2]
[356006991,1741793453455,-1228.14,0.00022191,2]
[356006992,1741793453464,-924.36,0.00022191,2]
[356006993,1741793453473,-2886.09,0.00022191,2]
[356006994,1741793453483,-500.0,0.00022191,2]
[356006995,1741793453496,-500.0,0.00022191,2]
[356006996,1741793453505,-500.0,0.00022191,2]
[356006997,1741793453515,-500.0,0.00022191,2]
[356006998,1741793453524,-1000.0,0.00022191,7]
[356006999,1741793453534,-500.0,0.00022191,2]
[356007000,1741793453543,-500.0,0.00022191,2]
[356007001,1741793453552,-500.0,0.00022191,2]
[356007002,1741793453562,-1251.64,0.00022191,2]
[356007003,1741793453571,-500.0,0.00022191,2]
[356007004,1741793453581,-834.66,0.00022191,2]
[356007005,1741793453591,-1413.63,0.00022191,2]
[356007006,1741793453600,-626.89,0.00022191,2]
[356007007,1741793453610,-1359.76,0.00022191,2]
[356007008,1741793453619,-610.44710715,0.00022191,2]
[356007009,1741793453629,-2270.93,0.00022191,2]
[356007010,1741793453638,-500.0,0.00022191,2]
[356007011,1741793453648,-653.3,0.00022191,2]
[356007012,1741793453658,-500.0,0.00022191,2]
[356007013,1741793453668,-1246.26,0.00022191,2]
[356007014,1741793453678,-500.0,0.00022191,2]
[356007015,1741793453687,-934.29,0.00022191,2]
[356007016,1741793453697,-1713.43,0.00022191,2]
[356007017,1741793453707,-507.49,0.00022191,2]
[356007018,1741793453716,-500.0,0.00022191,2]
[356007019,1741793453726,-500.0,0.00022191,2]
[356007020,1741793453736,-1097.06,0.00022191,2]
[356007021,1741793453745,-562.39,0.00022191,2]
[356007022,1741793453755,-4254.57,0.00022191,2]
[356007023,1741793453765,-1594.09,0.00022191,2]
[356007024,1741793453775,-500.0,0.00022191,2]
[356007025,1741793453784,-500.0,0.00022191,2]
[356007026,1741793453794,-820.67,0.00022191,2]
[356007027,1741793453804,-500.0,0.00022191,2]
[356007028,1741793453814,-500.0,0.00022191,2]
[356007029,1741793453824,-500.0,0.00022191,2]
[356007030,1741793453834,-1726.92,0.00022191,2]
[356007031,1741793453844,-2891.54,0.00022191,2]
[356007032,1741793453853,-500.0,0.00022191,2]
[356007033,1741793453863,-500.0,0.00022191,2]
[356007034,1741793453873,-500.0,0.00022191,2]
[356007035,1741793453883,-500.0,0.00022191,2]
[356007036,1741793453893,-500.0,0.00022191,2]
[356007037,1741793453902,-3383.01,0.00022191,2]
[356007038,1741793453912,-275.21378886,0.00022191,2]
[356007039,1741793453922,-694.4,0.00022191,2]
[356007040,1741793453932,-524.59,0.00022191,2]
[356007041,1741793453942,-235.98110283,0.00022191,2]
[356007042,1741793453952,-1946.89,0.00022191,2]
[356007043,1741793453962,-500.0,0.00022191,2]
[356007044,1741793453971,-9999.0,0.00022191,2]
[356007045,1741793453981,-500.0,0.00022191,2]
[356007046,1741793453993,-926.52,0.00022191,2]
[356007047,1741793454002,-502.8718502,0.00022191,2]
[356007048,1741793454012,-500.0,0.00022191,2]
[356007049,1741793454022,-500.0,0.00022191,2]
[356007050,1741793454032,-500.0,0.00022191,2]
[356007051,1741793454041,-719.17848329,0.00022275,2]
[356007052,1741793454051,-8626.55951275,0.00022465,5]
[356007053,1741793454061,-508.35179859,0.00022465,2]
[356007054,1741793454071,-631.47600512,0.00022465,2]
[356007055,1741793454081,-500.0,0.00022465,2]
[356007056,1741793454090,-589.18,0.00022465,2]
[356007057,1741793454100,-770.4,0.00022465,2]
[356007058,1741793454109,-548.9,0.00022465,2]
[356007059,1741793454122,-500.0,0.00022465,2]
[356007060,1741793454132,-573.41616792,0.00022465,2]
[356007061,1741793454142,-500.0,0.00022465,2]
[356007062,1741793454151,-763.1,0.00022465,2]
[356007063,1741793454161,-891.72,0.00022465,2]
[356007064,1741793454171,-500.0,0.00022465,2]
[356007065,1741793454180,-500.0,0.00022465,2]
[356007066,1741793454191,-500.0,0.00022465,2]
[356007067,1741793454200,-567.07,0.00022465,2]
[356007068,1741793454210,-500.0,0.00022465,2]
[356007069,1741793454220,-500.0,0.00022465,2]
[356007070,1741793454230,-546.65,0.00022465,2]
[356007071,1741793454241,-511.92,0.00022465,2]
[356007072,1741793454251,-562.06,0.00022465,2]
[356007073,1741793454261,-500.0,0.00022465,2]
[356007074,1741793454271,-500.0,0.00022465,2]
[356007075,1741793454280,-500.0,0.00022465,2]
[356007076,1741793454290,-500.0,0.00022465,2]
[356007077,1741793454300,-500.0,0.00022465,2]
[356007078,1741793454309,-500.0,0.00022465,2]
[356007079,1741793454319,-186.13418734,0.00022465,2]
[356007080,1741793454330,-430.06781165,0.00022465,2]
[356007081,1741793454339,-500.0,0.00022465,2]
[356007082,1741793454349,-500.0,0.00022465,2]
[356007083,1741793454358,-154.22724065,0.00022465,2]
[356007084,1741793454368,-515.81,0.00022465,2]
[356007085,1741793454378,-500.0,0.00022465,2]
[356007086,1741793454387,-500.0,0.00022465,2]
[356007087,1741793454398,-500.0,0.00022465,2]
[356007088,1741793454408,-465.28335422,0.00022465,2]
[356007089,1741793454417,-500.0,0.00022465,2]
[356007090,1741793454427,-500.0,0.00022465,2]
[356007091,1741793454437,-500.0,0.00022465,2]
[356007092,1741793454447,-500.0,0.00022465,2]
[356007093,1741793454457,-500.0,0.00022465,2]
[356007094,1741793454467,-515.69296982,0.00022465,2]
[356007095,1741793454477,-500.0,0.00022465,2]
[356007096,1741793454489,-500.0,0.00022465,2]
[356007097,1741793454499,-205.64621019,0.00022465,2]
[356007098,1741793454509,-500.0,0.00022465,2]
[356007099,1741793454518,-541.50779989,0.00022465,2]
[356007100,1741793454528,-500.0,0.00022465,2]
[356007101,1741793454538,-500.0,0.00022465,2]
[356007102,1741793454548,-500.0,0.00022465,2]
[356007103,1741793454558,-423.70646891,0.00022465,2]
[356007104,1741793454568,-500.0,0.00022465,2]
[356007105,1741793454578,-515.77695533,0.00022465,2]
[356007106,1741793454587,-500.0,0.00022465,2]
[356007107,1741793454596,-500.0,0.00022465,2]
[356007108,1741793454606,-500.0,0.00022465,2]
[356007109,1741793454616,-500.0,0.00022465,2]
[356007110,1741793454626,-661.64,0.00022465,2]
[356007111,1741793454636,-579.10752232,0.00022465,2]
[356007112,1741793454647,-500.0,0.00022465,2]
[356007113,1741793454657,-500.0,0.00022465,2]
[356007114,1741793454667,-500.0,0.00022465,2]
[356007115,1741793454676,-500.0,0.00022465,2]
[356007116,1741793454686,-500.0,0.00022465,2]
[356007117,1741793454695,-500.0,0.00022465,2]
[356007118,1741793454705,-500.0,0.00022465,2]
[356007119,1741793454715,-500.0,0.00022465,2]
[356007120,1741793454725,-500.0,0.00022465,2]
[356007121,1741793454830,-484.49440179,0.00022465,2]
[356007122,1741793454840,-500.0,0.00022465,2]
[356007123,1741793454850,-500.0,0.00022465,2]
[356007124,1741793454860,-500.0,0.00022465,2]
[356007125,1741793454869,-609.8,0.00022465,2]
[356007126,1741793454879,-1131.2,0.00022465,2]
[356007127,1741793454888,-500.0,0.00022465,2]
[356007128,1741793454898,-946.57,0.00022465,2]
[356007129,1741793454907,-500.0,0.00022465,2]
[356007130,1741793454917,-500.0,0.00022465,2]
[356007131,1741793454926,-500.0,0.00022465,2]
[356007132,1741793454935,-500.0,0.00022465,2]
[356007133,1741793454945,-826.09,0.00022465,2]
[356007134,1741793454955,-500.0,0.00022465,2]
[356007135,1741793454964,-500.0,0.00022465,2]
[356007136,1741793454973,-500.0,0.00022465,2]
[356007137,1741793454982,-500.0,0.00022465,2]
[356007138,1741793454994,-500.0,0.00022465,2]
[356007139,1741793455003,-500.0,0.00022465,2]
[356007140,1741793455012,-500.0,0.00022465,2]
[356007141,1741793455022,-500.0,0.00022465,2]
[356007142,1741793455031,-500.0,0.00022465,2]
[356007143,1741793455040,-500.0,0.00022465,2]
[356007144,1741793455050,-500.0,0.00022465,2]
[356007145,1741793455059,-507.56381159,0.00022465,2]
[356007146,1741793455068,-500.93926964,0.00022465,2]
[356007147,1741793455078,-500.0,0.00022465,2]
[356007148,1741793455088,-500.0,0.00022465,2]
[356007149,1741793455098,-500.0,0.00022465,2]
[356007150,1741793455108,-500.0,0.00022465,2]